{"text_format":"3","workbook":"xlsx","n_sheets":1,"sheets":["Budget matrimonio"],"not_rendered":{"images":1},"read":"whole","date_system":"1900"}

{"sheet":"Budget matrimonio","index":0,"n_rows":109,"n_cols":5,"rows_kept":109,"merged":[[2,1,3,1],[5,1,6,1],[14,1,15,1],[24,1,25,1],[33,1,34,1],[43,1,44,1],[50,1,51,1],[60,1,61,1],[73,1,74,1],[87,1,88,1],[95,1,96,1]]}
[{"$nulls":4}," "]
[]
[null,"Totale spese ","Stimate","Effettive"]
[null,null,{"$f":"C7+C16+C26+C35+C45+C52+C62+C75+C89+C97","v":{"v":350,"d":"€ 350"}},{"$f":"D7+D16+D26+D35+D45+D52+D62+D75+D89+D97","v":{"v":320,"d":"€ 320"}}]
[]
[null,"Abbigliamento","Stimate","Effettive"]
[null,null,{"$f":"SUM(Tabella_Abbigliamento[[#All],[Stimate]])","v":{"v":350,"d":"€ 350"}},{"$f":"SUM(Tabella_Abbigliamento[[#All],[Effettive]])","v":{"v":320,"d":"€ 320"}}]
[null,"Colonna1","Stimate","Effettive"]
[null,"Fedi nuziali",{"v":350,"d":"€ 350.00"},{"v":320,"d":"€ 320.00"}]
[null,"Abbigliamento per il matrimonio"]
[null,"Accessori"]
[null,"Scarpe"]
[null,"Altro - immettere i dettagli"]
[]
[null,"Decorazioni","Stimate","Effettive"]
[null,null,{"$f":"SUM(Tabella_Decorazioni[[#All],[Stimate]])","v":{"v":0,"d":"€ 0"}},{"$f":"SUM(Tabella_Decorazioni[[#All],[Effettive]])","v":{"v":0,"d":"€ 0"}}]
[null,"Colonna1","Stimate","Effettive"]
[null,"Ornamenti per la chiesa/altri posti a sedere"]
[null,"Centrotavola (fiori esclusi)"]
[null,"Candeline"]
[null,"Illuminazione"]
[null,"Palloncini"]
[null,"Altro - immettere i dettagli"]
[]
[null,"Regali","Stimate","Effettive"]
[null,null,{"$f":"SUM(Tabella_Regali[[#All],[Stimate]])","v":{"v":0,"d":"€ 0"}},{"$f":"SUM(Tabella_Regali[[#All],[Effettive]])","v":{"v":0,"d":"€ 0"}}]
[null,"Colonna1","Stimate","Effettive"]
[null,"Partecipanti"]
[null,"Sposi"]
[null,"Genitori"]
[null,"Lettori/altri partecipanti"]
[null,"Altro - immettere i dettagli"]
[]
[null,"Fiori","Stimate","Effettive"]
[null,null,{"$f":"SUM(Tabella_Fiori[[#All],[Stimate]])","v":{"v":0,"d":"€ 0"}},{"$f":"SUM(Tabella_Fiori[[#All],[Effettive]])","v":{"v":0,"d":"€ 0"}}]
[null,"Colonna1","Stimate","Effettive"]
[null,"Bouquet"]
[null,"Fiore all'occhiello"]
[null,"Corsage"]
[null,"Cerimonia"]
[null,"Ricevimento nuziale"]
[null,"Altro - immettere i dettagli"]
[]
[null,"Musica","Stimate","Effettive"]
[null,null,{"$f":"SUM(Tabella_Musica[[#All],[Stimate]])","v":{"v":0,"d":"€ 0"}},{"$f":"SUM(Tabella_Musica[[#All],[Effettive]])","v":{"v":0,"d":"€ 0"}}]
[null,"Colonna1","Stimate","Effettive"]
[null,"Musicisti per la cerimonia"]
[null,"Gruppo/DJ per il ricevimento nuziale"]
[null,"Altro - immettere i dettagli"]
[]
[null,"Fotografia","Stimate","Effettive"]
[null,null,{"$f":"SUM(Tabella_Fotografia[[#All],[Stimate]])","v":{"v":0,"d":"€ 0"}},{"$f":"SUM(Tabella_Fotografia[[#All],[Effettive]])","v":{"v":0,"d":"€ 0"}}]
[null,"Colonna1","Stimate","Effettive"]
[null,"Balli"]
[null,"Foto non ufficiali"]
[null,"Stampe aggiuntive"]
[null,"Album fotografici"]
[null,"Servizi video"]
[null,"Altro - immettere i dettagli"]
[]
[null,"Ricevimento nuziale (musica e decorazioni escluse)","Stimate","Effettive"]
[null,null,{"$f":"SUM(Tabella_RicevimentoNuziale[[#All],[Stimate]])","v":{"v":0,"d":"€ 0"}},{"$f":"SUM(Tabella_RicevimentoNuziale[[#All],[Effettive]])","v":{"v":0,"d":"€ 0"}}]
[null,"Colonna1","Stimate","Effettive"]
[null,"Spese sala/hall"]
[null,"Tavoli e sedie"]
[null,"Cibo"]
[null,"Bevande"]
[null,"Biancheria da tavola"]
[null,"Torta"]
[null,"Bomboniere"]
[null,"Personale e mance"]
[null,"Altro - immettere i dettagli"]
[]
[null,"Elementi decorativi/stampa","Stimate","Effettive"]
[null,null,{"$f":"SUM(Tabella_Elementi_decorativiStampa[[#All],[Stimate]])","v":{"v":0,"d":"€ 0"}},{"$f":"SUM(Tabella_Elementi_decorativiStampa[[#All],[Effettive]])","v":{"v":0,"d":"€ 0"}}]
[null,"Colonna1","Stimate","Effettive"]
[null,"Inviti"]
[null,"Annunci"]
[null,"Biglietti di ringraziamento"]
[null,"Elementi decorativi personali"]
[null,"Libro degli ospiti"]
[null,"Programmi"]
[null,"Tovaglioli del ricevimento"]
[null,"Fiammiferi"]
[null,"Calligrafia"]
[null,"Altro - immettere i dettagli"]
[]
[null,"Trasporti","Stimate","Effettive"]
[null,null,{"$f":"SUM(Tabella_Trasporti[[#All],[Stimate]])","v":{"v":0,"d":"€ 0"}},{"$f":"SUM(Tabella_Trasporti[[#All],[Effettive]])","v":{"v":0,"d":"€ 0"}}]
[null,"Colonna1","Stimate","Effettive"]
[null,"Limousine/tram"]
[null,"Parcheggio"]
[null,"Taxi"]
[null,"Altro - immettere i dettagli"]
[]
[null,"Altre spese","Stimate","Effettive"]
[null,null,{"$f":"SUM(Tabella_Altre_Spese[[#All],[Stimate]])","v":{"v":0,"d":"€ 0"}},{"$f":"SUM(Tabella_Altre_Spese[[#All],[Effettive]])","v":{"v":0,"d":"€ 0"}}]
[null,"Colonna1","Stimate","Effettive"]
[null,"Officiante"]
[null,"Compenso per la chiesa/sede della cerimonia"]
[null,"Coordinatore per il matrimonio"]
[null,"Cena prenuziale"]
[null,"Festa di fidanzamento"]
[null,"Feste"]
[null,"Appuntamenti dal parrucchiere"]
[null,"Feste di addio al celibato/nubilato"]
[null,"Aperitivo"]
[null,"Camere d'albergo"]
[null,"Altro - immettere i dettagli"]